bitfinex-derivatives/quotes_ETHF0:USTF0_20241018
["timestamp","ask_amount","ask_price","bid_price","bid_amount"]
[1729224354323,3.47680985,2615.5,2615.3,1.38]
[1729224354511,3.47680985,2615.5,2615.4,1.76244]
[1729224354910,3.85923985,2615.5,2615.4,1.76244]
[1729224355312,7.94699394,2615.8,2615.4,5.2032]
[1729224355521,7.94699394,2615.8,2615.7,1.38]
[1729224355522,5.23919985,2615.8,2615.7,1.38]
[1729224355823,5.23918985,2615.8,2615.7,1.38]
[1729224356822,0.38243,2615.5,2615.4,1.76243]
[1729224357015,1.76242,2615.6,2615.5,0.38242]
[1729224357211,1.76242,2615.6,2615.5,0.38243]
[1729224357419,0.38243,2615.5,2615.4,1.76243]
[1729224357621,0.8181,2615.5,2615.4,1.76243]
[1729224362220,2.1981,2615.5,2615.4,1.76243]
[1729224362509,0.38244,2615.4,2615.2,0.38246]
[1729224362709,0.38244,2615.4,2615.0,0.3825]
[1729224362710,0.38249,2615.1,2615.0,0.3825]
[1729224362932,0.38249,2615.1,2614.9,2.15051]
[1729224362933,4.97029,2615.1,2614.9,2.15051]
[1729224363236,4.97029,2615.1,2614.5,3.2078]
[1729224363237,2.179,2615.0,2614.5,3.2078]
[1729224363430,1.38,2614.8,2614.7,0.38254]
[1729224363724,1.778,2614.9,2614.8,0.38253]
[1729224365815,0.398,2614.9,2614.8,1.76253]
[1729224366125,4.5878,2615.1,2614.8,1.76253]
[1729224366126,6.69246674,2615.1,2614.8,1.38]
[1729224366321,6.69246674,2615.1,2614.6,0.95639]
[1729224366322,6.69246674,2615.1,2615.0,1.38]
[1729224366526,3.2078,2615.1,2615.0,1.7625]
[1729224367718,0.403,2615.2,2615.0,1.38]
[1729224367919,0.403,2615.2,2615.1,1.76249]
[1729224369122,3.48466674,2615.5,2615.1,1.38]
[1729224369318,3.48466674,2615.5,2615.4,1.76244]
[1729224369319,4.30066674,2615.5,2615.4,1.76244]
[1729224369514,0.816,2615.5,2615.4,1.76244]
[1729224373331,0.816,2615.5,2615.4,0.38244]
[1729224374331,1.19843,2615.5,2615.4,0.38244]
[1729224374720,2.57843,2615.5,2615.4,0.38244]
[1729224375022,2.57844,2615.5,2615.4,0.38244]
[1729224375429,2.57844,2615.5,2615.3,1.38]
[1729224375726,2.196,2615.5,2615.4,0.38244]
[1729224376733,2.57843,2615.5,2615.4,0.38244]
[1729224377630,0.38247,2615.3,2615.1,0.38249]
[1729224377832,1.7998,2615.2,2615.1,0.38249]
[1729224378730,1.7998,2615.2,2615.1,1.76249]
[1729224378928,1.7998,2615.2,2615.1,0.38249]
[1729224384529,1.7998,2615.2,2614.9,0.4097]
[1729224384735,0.8014,2615.1,2615.0,1.76249]
[1729224385750,2.1814,2615.1,2615.0,1.76249]
[1729224387437,0.8014,2615.1,2615.0,1.76249]
[1729224392240,2.56389,2615.1,2615.0,1.76249]
[1729224392437,2.5639,2615.1,2614.9,0.7922]
[1729224392628,1.76251,2615.0,2614.8,0.38252]
[1729224392940,1.38,2614.9,2614.8,0.38252]
[1729224394741,1.38,2614.9,2614.8,1.76252]
[1729224395239,1.76251,2615.0,2614.8,1.38]
[1729224395440,1.76251,2615.0,2614.9,0.38251]
[1729224396239,1.38,2615.0,2614.9,0.38251]
[1729224396633,1.38,2615.0,2614.9,1.76251]
[1729224397232,2.1814,2615.1,2614.9,1.38]
[1729224397437,0.8014,2615.1,2615.0,1.7625]
[1729224397742,0.3914,2615.1,2615.0,1.7625]
[1729224401540,1.7714,2615.1,2615.0,0.3825]
[1729224402039,2.15389,2615.1,2615.0,0.3825]
[1729224402240,1.7714,2615.1,2615.0,0.3825]
[1729224404945,2.15389,2615.1,2615.0,0.3825]
[1729224405149,0.38251,2615.0,2614.8,1.38]
[1729224405338,1.76252,2614.9,2614.8,0.38252]
[1729224405641,2.16732,2614.9,2614.6,1.38]
[1729224405941,1.8027,2614.8,2614.7,0.38254]
[1729224406145,2.18523,2614.8,2614.7,0.38254]
[1729224406335,1.8027,2614.8,2614.7,0.38254]
[1729224408261,0.4227,2614.8,2614.7,1.76254]
[1729224409440,1.8027,2614.8,2614.7,1.76254]
[1729224410447,2.18523,2614.8,2614.7,1.76254]
[1729224410638,1.8027,2614.8,2614.7,0.38254]
[1729224412046,3.5992,2615.1,2615.0,0.3825]
[1729224412254,3.5992,2615.1,2614.6,0.4021]
[1729224412255,0.77389,2615.1,2614.9,0.38251]
[1729224412453,1.38,2615.0,2614.9,0.38251]
[1729224412956,0.3914,2615.1,2615.0,0.3825]
[1729224413245,3.2078,2615.6,2615.0,5.204]
[1729224413450,0.8279,2615.5,2615.4,1.76244]
[1729224414840,0.38239,2615.8,2615.4,1.38]
[1729224415040,0.38239,2615.8,2615.6,0.38241]
[1729224415247,1.7789,2615.7,2615.6,0.38241]
[1729224416852,0.3989,2615.7,2615.6,1.76241]
[1729224417053,0.414,2615.9,2615.8,0.38238]
[1729224417356,2.2232,2615.9,2615.8,0.38238]
[1729224417555,0.8432,2615.9,2615.8,1.76238]
[1729224418348,2.60557,2615.9,2615.8,0.38238]
[1729224418661,2.2232,2615.9,2615.8,0.38238]
[1729224419355,2.2232,2615.9,2615.8,1.76238]
[1729224421765,2.2232,2615.9,2615.8,0.38238]
[1729224423851,2.2232,2615.9,2615.8,1.76238]
[1729224424260,0.38234,2616.2,2616.0,0.38235]
[1729224424559,1.8042,2616.1,2616.0,0.38235]
[1729224425059,1.8042,2616.1,2616.0,1.76235]
[1729224425657,1.8042,2616.1,2616.0,0.38235]
[1729224427361,2.18654,2616.1,2616.0,0.38235]
[1729224427568,1.8042,2616.1,2616.0,0.38235]
[1729224432966,1.8042,2616.1,2616.0,1.76235]
[1729224433469,0.4242,2616.1,2616.0,1.76235]
[1729224433867,0.4242,2616.1,2616.0,2.17985]
[1729224434269,0.8267,2616.2,2616.1,0.38234]
[1729224434568,1.38,2616.5,2616.1,5.2024]
[1729224434871,1.38,2616.5,2616.4,0.3823]
[1729224435778,4.4652,2616.6,2616.5,0.38228]
[1729224436073,5.8452,2616.6,2616.5,0.38228]
[1729224436373,9.6668,2616.6,2616.0,4.5878]
[1729224436556,9.6668,2616.6,2616.0,4.97015]
[1729224436557,1.38,2616.1,2616.0,4.97015]
[1729224437667,1.38,2616.2,2616.1,0.38234]
[1729224437968,1.38,2616.2,2616.1,1.76234]
[1729224438870,1.38,2616.3,2616.1,1.38]
[1729224439069,1.38,2616.3,2616.2,1.76232]
[1729224439265,4.4652,2616.6,2616.2,1.38]
[1729224439466,1.38,2616.4,2616.3,1.76231]
[1729224440563,4.4652,2616.6,2616.3,1.38]
[1729224440765,4.4652,2616.6,2616.5,0.38228]
[1729224441067,5.8452,2616.6,2616.5,0.38228]
[1729224441267,4.4652,2616.6,2616.5,1.76228]
[1729224441570,1.2574,2616.6,2616.5,1.76228]
[1729224441777,2.6374,2616.6,2616.5,0.38228]
[1729224443179,3.2078,2616.9,2616.8,0.38224]
[1729224443372,4.9837,2616.9,2616.8,0.38224]
[1729224444471,3.2078,2616.9,2616.8,1.76224]
[1729224444676,1.38,2617.2,2616.8,1.38]
[1729224444874,1.7759,2617.1,2617.0,0.3822]
[1729224445175,2.5814,2617.1,2617.0,0.3822]
[1729224445973,0.38217,2617.3,2616.6,7.0324]
[1729224446182,0.38216,2617.4,2616.8,2.98]
[1729224446377,0.77536,2617.4,2617.2,0.38217]
[1729224446578,0.4011,2617.3,2617.2,0.38217]
[1729224446774,0.795,2617.3,2617.2,0.38217]
[1729224447377,1.17716,2617.3,2617.2,0.38217]
[1729224447579,0.795,2617.3,2617.2,0.38217]
[1729224447779,1.17717,2617.3,2617.2,0.38218]
[1729224449479,1.17716,2617.3,2617.2,0.38218]
[1729224449676,0.38218,2617.2,2616.6,4.0524]
[1729224449881,1.17717,2617.3,2617.2,0.38218]
[1729224451872,1.17717,2617.3,2617.1,0.38218]
[1729224453881,0.795,2617.3,2616.8,3.2078]
[1729224454182,0.38219,2617.1,2616.8,3.2078]
[1729224454380,0.38219,2617.1,2617.0,0.38221]
[1729224454783,0.38219,2617.1,2616.8,3.09001]
[1729224455181,0.795,2617.3,2616.8,3.09001]
[1729224455376,0.38219,2617.2,2617.0,0.3822]
[1729224455690,1.17717,2617.3,2616.8,2.97221]
[1729224455889,0.38218,2617.2,2616.8,2.97221]
[1729224456780,0.38218,2617.2,2616.9,0.38222]
[1729224457085,0.38218,2617.2,2617.0,0.38219]
[1729224457283,0.38218,2617.2,2617.1,0.38219]
[1729224457881,0.38218,2617.2,2617.0,0.3822]
[1729224458990,0.38218,2617.2,2617.1,0.38219]
[1729224459177,0.795,2617.3,2616.8,2.97221]
[1729224459482,0.38218,2617.2,2617.1,0.38219]
[1729224460275,0.795,2617.3,2617.1,0.38219]
[1729224460677,0.38218,2617.2,2617.1,0.38219]
[1729224461076,0.795,2617.3,2616.8,2.97221]
[1729224461282,1.17717,2617.3,2617.2,0.38218]
[1729224461493,1.17717,2617.3,2616.8,2.97221]
[1729224461984,1.17717,2617.3,2617.1,0.38218]
[1729224462183,0.38218,2617.2,2617.1,0.38218]
[1729224462882,0.38218,2617.2,2616.8,2.97221]
[1729224462883,0.795,2617.3,2617.2,0.38218]
[1729224463694,1.17716,2617.3,2617.2,0.38218]
[1729224464690,0.795,2617.3,2617.2,0.38218]
[1729224465195,1.17716,2617.3,2617.2,0.38218]
[1729224465786,1.17716,2617.3,2617.2,1.76218]
[1729224465787,2.55716,2617.3,2617.2,1.76218]
[1729224466183,1.17716,2617.3,2617.2,1.76218]
[1729224466489,2.55716,2617.3,2617.2,1.76218]
[1729224467089,1.17716,2617.3,2617.2,1.76218]
[1729224467281,2.55716,2617.3,2617.2,1.76218]
[1729224467594,2.55716,2617.3,2617.2,0.38218]
[1729224470386,0.38214,2617.5,2617.3,0.38216]
[1729224470592,2.2095,2617.4,2616.9,3.2078]
[1729224470890,2.2095,2617.4,2617.2,0.38217]
[1729224470891,1.38,2617.3,2617.2,0.38217]
[1729224471189,2.2095,2617.4,2617.2,1.76217]
[1729224471691,1.38,2617.3,2617.2,1.76217]
[1729224473390,1.76217,2617.3,2617.2,0.38218]
[1729224473787,1.38,2617.3,2617.1,1.38]
[1729224473989,0.4196,2617.2,2617.1,1.76219]
[1729224478589,3.48466674,2617.3,2617.2,0.38218]
[1729224478783,4.85231409,2617.6,2617.2,1.38]
[1729224478784,0.38213,2617.6,2617.2,1.38]
[1729224478992,0.8268,2617.5,2617.4,0.38214]
[1729224480595,0.8268,2617.5,2617.4,1.76214]
[1729224484289,0.4217,2617.5,2617.4,1.76214]
[1729224486201,0.4076,2617.7,2617.6,0.38212]
[1729224486496,4.26976674,2617.8,2617.6,1.38]
[1729224486497,0.8156,2617.8,2617.6,1.38]
[1729224486695,0.8156,2617.8,2617.7,1.76211]
[1729224487288,3.48466674,2618.1,2617.7,1.38]
[1729224487492,0.8047,2618.0,2617.9,0.38208]
[1729224487802,0.8047,2618.0,2617.6,3.2078]
[1729224487995,0.3821,2617.8,2617.6,0.38212]
[1729224488199,0.3959,2617.7,2617.6,1.76211]
[1729224488396,0.3959,2617.7,2617.1,5.04846]
[1729224488397,0.3959,2617.7,2617.1,4.093]
[1729224488597,0.3959,2617.7,2617.0,0.4102]
[1729224488598,0.38216,2617.4,2617.0,0.4102]
[1729224488797,0.80867,2617.3,2617.1,0.38218]
[1729224489102,0.3959,2617.2,2617.1,0.38218]
[1729224489398,0.7893,2617.2,2617.1,0.38218]
[1729224489596,2.1693,2617.2,2617.1,1.76218]
[1729224489801,0.7893,2617.2,2617.1,1.76218]
[1729224490699,3.48466674,2617.4,2617.3,0.38216]
[1729224490909,3.48466674,2617.5,2617.4,0.38215]
[1729224491093,4.30456674,2617.6,2617.5,0.38213]
[1729224491295,0.8199,2617.6,2617.5,1.76213]
[1729224493100,2.58203,2617.6,2617.4,0.38214]
[1729224493303,2.58203,2617.6,2617.5,1.38]
[1729224493506,2.58203,2617.6,2617.5,1.76213]
[1729224493704,2.1999,2617.6,2617.5,1.76213]
[1729224493903,0.38214,2617.5,2617.3,1.76215]
[1729224494099,1.76214,2617.5,2617.3,1.38]
[1729224494305,3.97349697,2617.4,2617.3,0.38216]
[1729224494505,3.97349697,2617.4,2617.3,1.76216]
[1729224496311,3.97349697,2617.5,2617.4,0.38215]
[1729224496604,3.97349697,2617.5,2617.4,1.76215]
[1729224501108,5.67220409,2617.6,2617.5,0.38213]
[1729224501411,4.70019407,2617.6,2617.5,0.38213]
[1729224501613,1.20202,2617.6,2617.5,0.38213]
[1729224502311,0.8199,2617.6,2617.5,0.38213]
[1729224505215,1.20202,2617.6,2617.5,0.38213]
[1729224505912,0.8199,2617.6,2617.5,0.38213]
[1729224507210,0.8199,2617.6,2617.3,1.38]
[1729224507413,1.38,2617.4,2617.3,0.38216]
[1729224507818,1.76214,2617.5,2617.4,0.38215]
[1729224508013,1.76214,2617.5,2617.4,1.76215]
[1729224508210,1.76214,2617.5,2617.2,1.38]
[1729224508519,1.76214,2617.5,2617.3,1.38]
[1729224508717,1.38,2617.5,2617.3,1.38]
[1729224508921,0.38219,2617.2,2617.1,0.38219]
[1729224509112,1.38,2617.2,2617.1,0.38219]
[1729224509421,5.85018409,2617.2,2617.1,0.38219]
[1729224509614,6.66258409,2617.2,2617.1,0.38219]
[1729224509916,5.28258409,2617.2,2617.1,1.76219]
[1729224510117,0.8124,2617.2,2617.1,1.76219]
[1729224510513,4.81079548,2617.2,2617.1,1.76219]
[1729224510815,4.42259548,2617.2,2617.1,1.76219]
[1729224511010,4.81079548,2617.2,2617.1,1.76219]
[1729224516115,0.8124,2617.2,2617.1,1.76219]
[1729224520122,0.8124,2617.2,2617.1,0.38219]
[1729224520628,2.1924,2617.2,2617.1,0.38219]
[1729224521918,3.49920729,2617.4,2617.3,0.38216]
[1729224522118,4.47018409,2617.6,2617.4,0.38214]
[1729224522119,5.67103729,2617.6,2617.4,0.38214]
[1729224522322,5.67103729,2617.6,2617.3,1.38]
[1729224522323,3.90890729,2617.6,2617.5,0.38213]
[1729224522529,5.28890729,2617.6,2617.5,0.38213]
[1729224522728,9.10890729,2617.6,2617.5,0.38213]
[1729224523323,9.49103729,2617.6,2617.4,0.38214]
[1729224523630,1.38,2617.5,2617.4,0.38214]
[1729224523831,1.38,2617.5,2616.8,3.2078]
[1729224524028,0.3822,2617.1,2617.0,0.3822]
[1729224524325,0.3822,2617.1,2616.6,0.38226]
[1729224524326,6.75839548,2617.1,2616.6,0.38226]
[1729224524521,1.76225,2616.7,2616.5,0.38228]
[1729224524827,2.15587,2616.6,2616.4,0.38229]
[1729224525127,1.7788,2616.5,2616.2,1.78]
[1729224525331,1.38,2616.3,2616.2,2.16232]
[1729224525520,1.38,2616.3,2616.2,1.76232]
[1729224526125,1.38,2616.4,2616.3,0.38231]
[1729224526319,1.38,2616.4,2616.3,1.76231]
[1729224526827,0.3988,2616.5,2616.4,0.3823]
[1729224527033,2.1733,2616.5,2616.4,0.3823]
[1729224528340,2.1733,2616.5,2616.3,1.38]
[1729224528531,2.1733,2616.5,2616.1,0.403]
[1729224528532,1.7623,2616.4,2616.2,0.38232]
[1729224528826,0.7933,2616.5,2616.2,0.38232]
[1729224528827,1.38,2616.3,2616.2,0.38232]
[1729224529621,1.76231,2616.3,2616.0,3.2078]
[1729224529826,1.38,2616.1,2616.0,3.59015]
[1729224536643,1.38,2616.1,2616.0,0.38235]
[1729224540331,1.38,2616.1,2616.0,1.76235]
[1729224543439,1.38,2616.2,2616.1,0.38234]
[1729224544142,0.7933,2616.5,2616.1,1.38]
[1729224544343,3.2078,2616.6,2616.4,1.38]
[1729224544344,1.38,2616.6,2616.4,1.38]
[1729224544643,0.38227,2616.7,2616.5,0.8039]
[1729224544842,0.38227,2616.7,2616.5,0.79458]
[1729224545149,0.38227,2616.7,2616.6,0.38227]
[1729224545342,1.76227,2616.7,2616.5,0.79457]
[1729224545645,1.38,2616.6,2616.5,0.79457]
[1729224546343,0.38229,2616.5,2616.1,0.38234]
[1729224546542,1.38,2616.2,2616.1,2.18494]
[1729224546938,1.38,2616.3,2616.1,1.8026]
[1729224547246,1.38,2616.3,2616.2,1.76232]
[1729224547646,1.38,2616.3,2616.2,0.38232]
[1729224548843,1.7806,2616.4,2616.3,0.38231]
[1729224549045,1.38,2616.4,2616.3,0.81201]
[1729224551041,1.38,2616.5,2616.3,1.8097]
[1729224551245,1.38,2616.5,2616.4,0.3823]
[1729224552843,1.7847,2616.6,2616.5,0.38228]
[1729224556956,1.7847,2616.6,2616.5,0.77598]
[1729224557648,1.38,2616.6,2616.5,0.77598]
[1729224557856,0.833,2616.8,2616.7,0.38225]
[1729224558158,2.213,2616.8,2616.7,0.38225]
[1729224565156,0.833,2616.8,2616.7,0.38225]
[1729224565351,4.87872175,2617.2,2616.7,11.2016]
[1729224565560,0.4055,2617.1,2617.0,1.76221]
[1729224566853,1.7855,2617.1,2617.0,0.38221]
[1729224575154,2.1677,2617.1,2616.9,0.38221]
[1729224575354,1.38,2617.0,2616.9,0.38221]
[1729224578352,1.38,2617.0,2616.5,4.5878]
[1729224578555,1.38,2616.6,2616.5,4.97008]
[1729224578759,1.38,2616.7,2616.6,0.38227]
[1729224578957,1.38,2616.7,2616.6,1.76227]
[1729224579166,1.7681,2616.8,2616.7,0.38225]
[1729224579462,1.7681,2616.8,2616.7,1.76225]
[1729224580456,1.38,2616.8,2616.7,1.76225]
[1729224581971,1.778,2616.9,2616.7,1.38]
[1729224582265,2.1736,2617.1,2616.8,1.38]
[1729224582460,2.1736,2617.1,2617.0,0.38221]
[1729224585074,0.4222,2617.2,2617.1,0.38219]
[1729224585262,1.8022,2617.2,2617.1,0.38219]
[1729224585462,1.8022,2617.2,2617.1,0.80269]
[1729224588172,1.8022,2617.2,2617.1,2.18269]
[1729224588379,0.4222,2617.2,2617.1,2.18269]
[1729224588764,1.38,2617.3,2617.2,0.38218]
[1729224588959,1.8097,2617.4,2617.3,0.38216]
[1729224589569,4.33902175,2617.6,2617.3,0.38216]
[1729224589570,3.49872175,2617.6,2617.5,0.38213]
[1729224589768,3.99839548,2617.8,2617.5,0.38213]
[1729224589769,1.38,2617.8,2617.6,0.38211]
[1729224589972,0.8115,2617.7,2617.6,0.38211]
[1729224590168,2.6212,2617.7,2617.6,0.38211]
[1729224590672,2.6212,2617.7,2617.5,0.38212]
[1729224591274,2.6212,2617.7,2617.6,0.38212]
[1729224592268,1.2412,2617.7,2617.6,1.76212]
[1729224592471,2.6212,2617.7,2617.6,1.76212]
[1729224592679,2.6212,2617.7,2617.6,0.38212]
[1729224596575,2.6212,2617.7,2617.4,3.2078]
[1729224596771,2.6212,2617.7,2617.2,0.38217]
[1729224596772,1.76214,2617.5,2617.2,0.38217]
[1729224596968,1.38,2617.3,2617.2,0.38217]
[1729224597571,2.1695,2617.3,2617.2,0.38217]
[1729224605980,2.1695,2617.3,2617.0,1.7739]
[1729224606180,1.38,2617.2,2617.1,0.38218]
[1729224606389,0.3822,2617.1,2616.9,3.2078]
[1729224606577,1.38,2617.0,2616.9,3.59001]
[1729224607386,1.38,2617.0,2616.9,3.2078]
[1729224607581,1.38,2617.0,2616.9,3.59002]
[1729224610486,1.76221,2617.0,2616.8,0.38222]
[1729224610694,2.217,2616.9,2616.8,0.38222]
[1729224610899,0.38224,2616.8,2616.5,3.2078]
[1729224611092,0.38224,2616.8,2616.1,1.95521573]
[1729224611093,1.38,2616.6,2616.2,0.4027]
[1729224611285,2.217,2616.5,2616.2,0.4027]
[1729224611484,0.837,2616.5,2616.4,1.7623]
[1729224611687,2.217,2616.5,2616.4,1.7623]
[1729224612082,2.217,2616.5,2616.4,0.3823]
[1729224616499,0.77675,2616.7,2616.5,0.38228]
[1729224616793,1.7966,2616.6,2616.5,0.38228]
[1729224617092,1.7966,2616.6,2616.2,3.6105]
[1729224617296,0.4166,2616.6,2616.4,0.38229]
[1729224617592,0.4166,2616.6,2616.3,1.38]
[1729224617781,0.4166,2616.6,2616.4,0.3823]
[1729224617782,0.419,2616.5,2616.4,0.3823]
[1729224617986,1.799,2616.5,2616.4,1.7623]
[1729224618700,1.799,2616.5,2616.4,0.3823]
[1729224625689,1.799,2616.5,2616.1,1.38]
[1729224625891,1.799,2616.5,2615.9,3.6358]
[1729224625892,1.38,2616.2,2615.9,3.6358]
[1729224626091,1.38,2616.2,2615.9,3.59017]
[1729224626092,1.38,2616.0,2615.9,3.59017]
[1729224626897,1.38,2616.0,2615.9,0.38237]
[1729224627893,1.38,2616.0,2615.9,1.76237]
[1729224628801,1.38,2616.0,2615.8,1.38]
[1729224628995,1.2214,2616.1,2615.8,1.38]
[1729224628996,1.38,2615.9,2615.8,1.38]
[1729224629200,1.38,2616.0,2615.8,1.38]
[1729224629400,1.38,2616.0,2615.9,1.76237]
[1729224629997,1.2214,2616.1,2615.9,1.76237]
[1729224629998,3.2078,2616.6,2616.4,0.38228]
[1729224630207,2.2262,2616.5,2616.4,0.38228]
[1729224630708,0.8462,2616.5,2616.4,0.38228]
[1729224631008,2.2262,2616.5,2616.4,0.38228]
[1729224631208,1.22849,2616.5,2615.8,4.16376]
[1729224631401,1.38,2616.1,2616.0,0.38235]
[1729224632402,1.7954,2616.1,2616.0,0.38235]
[1729224633422,1.7954,2616.1,2615.9,0.38236]
[1729224633612,1.38,2616.0,2615.9,0.38237]
[1729224633815,1.38,2616.0,2615.8,3.2078]
[1729224634003,1.38,2615.9,2615.8,3.2078]
[1729224634203,1.38,2615.9,2615.8,3.59018]
[1729224634417,1.38,2615.9,2615.8,3.2078]
[1729224634914,1.38,2615.9,2615.8,3.59018]
[1729224635712,1.38,2615.9,2615.7,0.38239]
[1729224635905,2.212,2615.8,2615.7,0.38239]
[1729224641107,2.212,2615.8,2615.7,0.3824]
[1729224642421,2.212,2615.8,2615.6,0.38241]
[1729224642606,1.7871,2615.7,2615.6,0.38241]
[1729224651721,2.1695,2615.7,2615.5,0.38242]
[1729224652022,2.1695,2615.7,2615.1,2.1788]
[1729224652023,1.38,2615.6,2615.1,2.1788]
[1729224652223,1.38,2615.6,2615.5,0.38243]
[1729224652622,6.96562,2615.6,2615.3,0.38244]
[1729224652822,1.38,2615.4,2615.3,0.38244]
[1729224653217,1.7856,2615.4,2615.3,0.38244]
[1729224654713,1.7856,2615.4,2615.0,3.6204]
[1729224654914,1.38,2615.1,2615.0,4.00289]
[1729224655936,1.38,2615.1,2614.7,0.4165]
[1729224655937,1.76249,2615.1,2614.9,0.38251]
[1729224656119,0.3927,2615.2,2614.9,0.38251]
[1729224656120,1.38,2615.0,2614.9,0.38251]
[1729224657015,1.38,2615.0,2614.6,3.2078]
[1729224657327,1.38,2615.0,2614.6,0.38256]
[1729224657328,1.38,2614.7,2614.6,0.38256]
[1729224657626,1.38,2614.7,2614.5,0.38256]
[1729224657820,1.7796,2614.6,2614.4,0.38258]
[1729224658018,2.18998,2614.5,2614.3,3.9994]
[1729224658219,1.38,2614.4,2614.3,3.2078]
[1729224658430,1.7702,2614.4,2614.3,3.2078]
[1729224658626,1.7702,2614.4,2614.3,3.5904]
[1729224658930,1.7702,2614.4,2614.3,3.2078]
[1729224659119,1.7702,2614.4,2614.2,0.38261]
[1729224659316,1.38,2614.3,2613.8,3.2078]
[1729224659628,0.3902,2614.4,2613.8,0.38268]
[1729224659629,1.38,2613.9,2613.8,0.38268]
[1729224660225,1.38,2613.9,2613.8,3.59048]
[1729224660428,1.38,2613.9,2613.8,4.97048]
[1729224661520,1.38,2614.0,2613.8,4.5878]
[1729224661728,1.38,2614.0,2613.9,1.76266]
[1729224664917,1.38,2614.0,2613.9,0.38266]
[1729224665829,1.38,2614.0,2613.9,3.59046]
[1729224671136,1.38,2614.0,2613.9,0.38266]
[1729224671329,0.4128,2614.2,2614.1,0.38263]
[1729224671531,1.7928,2614.2,2614.1,0.38263]
[1729224676442,5.6184,2614.2,2613.9,3.2078]
[1729224676637,1.38,2614.0,2613.9,3.59046]
[1729224679441,1.38,2614.0,2613.9,0.38266]
[1729224680228,2.76,2614.0,2613.9,0.38266]
[1729224686039,2.76,2614.0,2613.5,3.2078]
[1729224686348,2.76,2614.0,2613.5,0.38272]
[1729224686349,1.38,2613.6,2613.5,0.38272]
[1729224687332,1.7873,2613.6,2613.5,0.38272]
[1729224690943,1.7873,2613.6,2613.2,4.0383]
[1729224691145,1.38,2613.3,2613.2,4.42106]
[1729224691643,0.8098,2613.5,2613.4,0.38273]
[1729224691846,2.1898,2613.5,2613.4,0.38273]
[1729224692454,1.38,2613.5,2613.4,0.38273]
[1729224693540,0.399,2613.8,2613.4,1.38]
[1729224693747,1.38,2613.5,2613.4,1.76273]
[1729224693951,1.38,2613.5,2613.4,4.97053]
[1729224697148,1.38,2613.5,2613.4,1.76273]
[1729224697347,1.38,2613.5,2613.4,4.97053]
[1729224697853,1.38,2613.5,2613.4,4.5878]
[1729224698055,1.38,2613.5,2613.4,4.97053]
[1729224703853,0.8211,2613.8,2613.4,4.5878]
[1729224704157,0.8211,2613.8,2613.7,4.97049]
[1729224704158,1.779,2613.8,2613.7,4.97049]
[1729224704355,1.779,2613.8,2613.7,3.59049]
[1729224707560,2.1801,2613.8,2613.7,3.59049]
[1729224714961,1.38,2613.8,2613.7,4.97049]
[1729224715165,1.786,2613.8,2613.7,3.59049]
[1729224715666,0.8158,2614.1,2614.0,0.38265]
[1729224715976,2.1958,2614.1,2614.0,0.38265]
[1729224716156,2.1958,2614.1,2614.0,3.59045]
[1729224718266,2.1958,2614.1,2614.0,0.38265]
[1729224718767,2.1958,2614.1,2614.0,3.59045]
[1729224721867,0.8158,2614.1,2614.0,4.97045]
[1729224722371,1.2457,2614.1,2614.0,4.97045]
[1729224725462,1.2457,2614.1,2614.0,8.79605]
[1729224731766,8.08652175,2614.8,2614.2,0.95653]
[1729224731767,1.38,2614.5,2614.2,0.95653]
[1729224731974,1.38,2614.5,2614.4,1.76259]
[1729224733174,1.801,2614.5,2614.4,1.76259]
[1729224735279,0.421,2614.5,2614.4,1.76259]
[1729224735676,1.801,2614.5,2614.4,0.38259]
[1729224736988,1.801,2614.5,2614.4,1.76259]
[1729224737974,0.421,2614.5,2614.4,1.76259]
[1729224740569,3.49872175,2615.5,2614.5,1.91288]
[1729224740776,0.4288,2615.1,2614.7,2.33635]
[1729224741077,3.2078,2615.9,2615.3,0.38246]
[1729224741078,0.4191,2615.4,2615.3,0.38246]
[1729224741277,0.4191,2615.4,2615.3,4.97026]
[1729224744487,0.8195,2615.6,2615.3,4.5878]
[1729224744786,0.8195,2615.6,2615.5,1.76243]
[1729224745779,2.1995,2615.6,2615.5,1.76243]
[1729224745980,2.1995,2615.6,2615.5,0.38243]
[1729224748383,2.1995,2615.6,2615.5,1.76243]
[1729224750088,0.8195,2615.6,2615.5,1.76243]
[1729224752284,2.1995,2615.6,2615.5,1.76243]
[1729224752683,0.8195,2615.6,2615.5,1.76243]
[1729224753886,2.1995,2615.6,2615.5,0.38243]
[1729224754183,2.1995,2615.6,2614.8,1.33823]
[1729224754184,13.78512,2615.6,2615.2,0.38246]
[1729224754494,1.38,2615.3,2615.2,0.38246]
[1729224755276,1.38,2615.3,2615.2,1.76246]
[1729224757683,1.38,2615.3,2615.2,1.76247]
[1729224757987,0.4045,2615.5,2615.4,0.38244]
[1729224758182,0.4045,2615.5,2615.4,1.76244]
[1729224761987,0.8195,2615.6,2615.5,0.38243]
[1729224762191,1.2342,2615.6,2615.5,4.97023]
[1729224767895,1.2342,2615.6,2615.5,1.76243]
[1729224768095,1.2342,2615.6,2615.5,4.97023]